fUSD/lending_fUSD_20250402
["ID","MTS","AMOUNT","RATE_DAILY","PERIOD"]
[357024510,1743585047163,-500.0,0.00054999,120]
[357024512,1743585047172,-500.0,0.00054999,120]
[357024514,1743585047181,-519.457453,0.00054999,120]
[357024516,1743585047190,-50000.0,0.00055,55]
[357024518,1743585047199,-2000.0,0.00055,120]
[357024519,1743585047208,-1000000.0,0.00055,120]
[357024521,1743585047217,-151.35074063,0.00055,120]
[357024523,1743585047229,-249955.58,0.00055,120]
[357024525,1743585047239,-151.0,0.00055,120]
[357024527,1743585047249,-151.0,0.00055,120]
[357024529,1743585047258,-270.175396,0.00055,120]
[357024531,1743585047268,-151.0,0.00055,120]
[357024533,1743585047277,-151.0,0.00055,120]
[357024535,1743585047287,-654.077786,0.00055,120]
[357024537,1743585047296,-654.077786,0.00055,120]
[357024538,1743585047304,-281.492028,0.00055,120]
[357024540,1743585047314,-654.077786,0.00055,120]
[357024542,1743585047324,-654.077796,0.00055,120]
[357024543,1743585047333,-2814.7577208,0.00055015,2]
[357024545,1743585047342,-7098.4306635,0.00055015,2]
[357024547,1743585047353,-2466.3014653,0.00055015,2]
[357024549,1743585047362,-610.9837534,0.00055028,2]
[357024550,1743585047371,-874.22,0.00055066,30]
[357024552,1743585047382,-1215.49,0.00055066,120]
[357024554,1743585047393,-1311.5,0.00055066,120]
[357024555,1743585047401,-823.75,0.00055066,120]
[357024557,1743585047411,-500.0,0.00055066,120]
[357024559,1743585047419,-500.0,0.00055066,120]
[357024560,1743585047430,-550.06,0.00055066,7]
[357024562,1743585047440,-603.25,0.00055066,120]
[357024564,1743585047449,-553.88,0.00055067,120]
[357024565,1743585047458,-516.75,0.00055067,120]
[357024567,1743585047470,-600.36,0.00055067,12]
[357024569,1743585047479,-500.0,0.00055067,120]
[357024571,1743585047488,-500.0,0.00055067,120]
[357024572,1743585047497,-520.67,0.00055067,120]
[357024574,1743585047507,-500.0,0.00055067,120]
[357024576,1743585047517,-152.17493638,0.00055067,120]
[357024577,1743585047527,-500.0,0.00055067,120]
[357024579,1743585047537,-150.5543887,0.00055076,2]
[357024581,1743585047547,-591.56,0.00055174,120]
[357024583,1743585047556,-5067.7,0.00055174,120]
[357024585,1743585047566,-500.0,0.00055176,120]
[357024586,1743585047575,-915.54969584,0.00055181,15]
[357024588,1743585047585,-874.22,0.0005534,30]
[357024590,1743585047595,-1215.49,0.0005534,120]
[357024592,1743585047606,-1311.5,0.0005534,120]
[357024593,1743585047616,-823.75,0.0005534,120]
[357024595,1743585047626,-500.0,0.0005534,120]
[357024597,1743585047636,-500.0,0.0005534,120]
[357024598,1743585047646,-550.06,0.0005534,7]
[357024600,1743585047656,-603.25,0.0005534,120]
[357024602,1743585047666,-500.0,0.00055341,120]
[357024603,1743585047675,-553.88,0.00055341,120]
[357024605,1743585047685,-516.75,0.00055341,120]
[357024607,1743585047695,-600.36,0.00055341,12]
[357024609,1743585047704,-221.66,0.00055341,120]
[357024611,1743585047714,-500.0,0.00055341,120]
[357024612,1743585047723,-520.67,0.00055341,120]
[357024614,1743585047732,-201.82,0.00055341,120]
[357024616,1743585047741,-591.56,0.00055448,120]
[357024617,1743585047751,-5067.7,0.00055448,120]
[357024619,1743585047760,-353.71731405,0.00055456,15]
[357024621,1743585047769,-500.0,0.00055469,120]
[357024623,1743585047778,-152.63,0.000555,54]
[357024625,1743585047787,-152.63,0.000555,54]
[357024626,1743585047796,-1000.0,0.00055502,120]
[357024628,1743585047806,-7034.7,0.00055533,8]
[357024630,1743585047816,-25987.80530081,0.00055533,8]
[357024646,1743585047992,-126.03414201,0.00055533,8]
[357024648,1743585048003,-25361.94405797,0.00055533,8]
[357024650,1743585048014,-99803.14649921,0.00055533,8]
[357024651,1743585048024,-19348.41,0.00055533,8]
[357024653,1743585048033,-10445.11,0.00055533,8]
[357024655,1743585048043,-874.22,0.00055614,30]
[357024657,1743585048052,-1215.49,0.00055614,120]
[357024659,1743585048061,-1311.5,0.00055614,120]
[357024660,1743585048071,-823.75,0.00055614,120]
[357024662,1743585048080,-500.0,0.00055614,120]
[357024664,1743585048089,-500.0,0.00055614,120]
[357024666,1743585048099,-550.06,0.00055614,7]
[357024668,1743585048113,-603.25,0.00055614,120]
[357024669,1743585048123,-500.0,0.00055615,120]
[357024671,1743585048133,-553.88,0.00055615,120]
[357024673,1743585048142,-516.75,0.00055615,120]
[357024675,1743585048152,-600.36,0.00055615,12]
[357024677,1743585048161,-500.0,0.00055615,120]
[357024679,1743585048171,-520.67,0.00055615,120]
[357024680,1743585048181,-500.0,0.00055698,120]
[357024682,1743585048190,-591.56,0.00055722,120]
[357024684,1743585048200,-5067.7,0.00055722,120]
[357024686,1743585048209,-500.0,0.00055741,120]
[357024687,1743585048219,-206.04,0.00055833,120]
[357024689,1743585048229,-874.22,0.00055888,30]
[357024691,1743585048239,-1215.49,0.00055888,120]
[357024693,1743585048248,-1311.5,0.00055888,120]
[357024695,1743585048257,-823.75,0.00055888,120]
[357024697,1743585048266,-500.0,0.00055888,120]
[357024698,1743585048276,-500.0,0.00055888,120]
[357024700,1743585048285,-550.06,0.00055888,7]
[357024702,1743585048295,-603.25,0.00055888,120]
[357024704,1743585048304,-500.0,0.00055889,120]
[357024706,1743585048314,-553.88,0.00055889,120]
[357024707,1743585048324,-516.75,0.00055889,120]
[357024709,1743585048333,-600.36,0.00055889,12]
[357024711,1743585048343,-500.0,0.00055889,120]
[357024713,1743585048354,-520.67,0.00055889,120]
[357024715,1743585048364,-368.54189208,0.000559,120]
[357024717,1743585048374,-500.0,0.00055914,120]
[357024718,1743585048385,-591.56,0.00055996,120]
[357024720,1743585048395,-5067.7,0.00055996,120]
[357024722,1743585048404,-50000.0,0.00056,56]
[357024724,1743585048414,-299576.87,0.00056,120]
[357024725,1743585048423,-500.0,0.00056041,120]
[357024727,1743585048432,-915.54969584,0.00056124,15]
[357024729,1743585048442,-33723.58,0.00056137,8]
[357024731,1743585048451,-874.22,0.00056162,30]
[357024733,1743585048462,-1215.49,0.00056162,120]
[357024734,1743585048472,-1311.5,0.00056162,120]
[357024736,1743585048482,-823.75,0.00056162,120]
[357024738,1743585048491,-464.3,0.00056162,120]
[357024740,1743585048501,-306.38422796,0.00056162,120]
[357024742,1743585048511,-550.06,0.00056162,7]
[357024744,1743585048522,-603.25,0.00056162,120]
[357024746,1743585048532,-500.0,0.00056163,120]
[357024747,1743585048542,-553.88,0.00056163,120]
[357024748,1743585048551,-516.75,0.00056163,120]
[357024749,1743585048561,-600.36,0.00056163,12]
[357024750,1743585048570,-520.67,0.00056163,120]
[357024751,1743585048580,-500.0,0.00056208,120]
[357024752,1743585048589,-591.58,0.0005627,120]
[357024753,1743585048598,-5067.92,0.0005627,120]
[357024754,1743585048610,-214.07,0.00056368,2]
[357024755,1743585048619,-874.22,0.00056436,30]
[357024756,1743585048628,-1215.49,0.00056436,120]
[357024757,1743585048640,-1311.5,0.00056436,120]
[357024758,1743585048651,-823.75,0.00056436,120]
[357024759,1743585048660,-550.06,0.00056436,7]
[357024760,1743585048670,-603.25,0.00056436,120]
[357024761,1743585048679,-500.0,0.00056437,120]
[357024762,1743585048688,-553.88,0.00056437,120]
[357024764,1743585048697,-516.75,0.00056437,120]
[357024765,1743585048707,-600.36,0.00056437,12]
[357024767,1743585048716,-520.67,0.00056437,120]
[357024769,1743585048726,-353.71731405,0.00056567,15]
[357024771,1743585048736,-6000.40819925,0.0005666,35]
[357024773,1743585048745,-874.22,0.0005671,30]
[357024775,1743585048755,-1215.49,0.0005671,120]
[357024777,1743585048764,-1311.5,0.0005671,120]
[357024779,1743585048773,-823.75,0.0005671,120]
[357024781,1743585048783,-550.06,0.0005671,7]
[357024783,1743585048793,-603.25,0.0005671,120]
[357024785,1743585048802,-500.0,0.00056711,120]
[357024787,1743585048812,-553.88,0.00056711,120]
[357024789,1743585048822,-516.75,0.00056711,120]
[357024791,1743585048833,-600.36,0.00056711,12]
[357024793,1743585048843,-520.67,0.00056711,120]
[357024795,1743585048853,-500.0,0.00056792,120]
[357024797,1743585048865,-8400.0,0.000569,20]
[357024799,1743585048875,-874.28,0.00056984,30]
[357024801,1743585048886,-1215.49,0.00056984,120]
[357024803,1743585048895,-1311.71,0.00056984,120]
[357024805,1743585048906,-823.89,0.00056984,120]
[357024807,1743585048915,-550.1467,0.00056984,7]
[357024809,1743585048925,-603.31,0.00056984,120]
[357024811,1743585048935,-500.0,0.00056985,120]
[357024813,1743585048945,-554.0813763,0.00056985,120]
[357024815,1743585048955,-516.95669294,0.00056985,120]
[357024817,1743585048964,-600.39,0.00056985,12]
[357024819,1743585048974,-520.67,0.00056985,120]
[357024821,1743585048983,-50000.0,0.00057,57]
[357024822,1743585048992,-31112.48985925,0.00057,120]
[357024841,1743585049172,-151.0,0.00052415,120]
[357024843,1743585049182,-151.0,0.00052415,120]
[357024845,1743585049191,-151.0,0.0005249,120]
[357024847,1743585049201,-19163.58982689,0.00057,120]
[357024855,1743585049263,-1481.71878987,0.00057,120]
[357024963,1743585050442,-151.0,0.000525,120]
[357024964,1743585050452,-151.0,0.0005299,120]
[357024965,1743585050466,-66.20243316,0.00053138,120]
[357024975,1743585050641,-84.79756684,0.00053138,120]
[357024976,1743585050651,-151.0,0.00053794,120]
[357024977,1743585050660,-151.0,0.0005399,120]
[357024978,1743585050670,-151.0,0.0005399,120]
[357024979,1743585050679,-151.0,0.00054,120]
[357024980,1743585050688,-152.19608605,0.000549,120]
[357024981,1743585050698,-5142.68166539,0.00057,120]
[357024982,1743585050710,-28134.89597303,0.00057,120]
[357024999,1743585051635,-54921.68796081,0.00057,120]
[357025000,1743585052021,-151.0,0.000548,120]
[357025001,1743585052031,-234485.90592476,0.00057,120]
[357025002,1743585052039,-915.54969584,0.00057068,15]
[357025003,1743585052048,-208.0,0.0005709,30]
[357025004,1743585052057,-208.0,0.0005709,30]
[357025005,1743585052067,-500.0,0.00057259,120]
[357025006,1743585052076,-150.5,0.00057508,120]
[357025007,1743585052085,-500.0,0.00057533,120]
[357025008,1743585052094,-353.71731405,0.00057678,15]
[357025009,1743585052103,-152.63,0.000577,57]
[357025010,1743585052114,-152.63,0.000577,57]
[357025011,1743585052124,-152.63,0.000577,57]
[357025012,1743585052133,-152.63,0.000577,57]
[357025013,1743585052142,-152.63,0.000577,57]
[357025014,1743585052151,-152.63,0.000577,57]
[357025015,1743585052161,-152.63,0.000577,57]
[357025016,1743585052170,-152.63,0.000577,57]
[357025017,1743585052179,-986.7854,0.00057807,120]
[357025018,1743585052188,-151.51909124,0.000579,120]
[357025019,1743585052197,-1000.0,0.00057952,14]
[357025020,1743585052208,-2296.8593243,0.0005796,2]
[357025021,1743585052217,-5792.3623539,0.0005796,2]
[357025022,1743585052227,-1076.18109586,0.0005796,2]
[357025023,1743585106233,66000.0,0.0004242,45]
[357025025,1743585908112,781028.48919151,0.00015,2]
[357025026,1743585920294,1217.75396529,9e-05,2]
[357025027,1743585933100,-328.404,0.00036709,2]
[357025028,1743585933124,-46.61421139,0.000499,2]
[357025029,1743585936643,9672.05953977,8e-05,2]
[357025032,1743585959102,-575.70668861,0.000499,2]
[357025033,1743585959123,-5553.0,0.000503,98]
[357025034,1743585959143,-1101.21422058,0.00050583,2]
[357025035,1743585959162,-1469.0,0.0005068,5]
[357025036,1743585959183,-632.49971001,0.00050683,120]
[357025037,1743585959204,-499.12038,0.00050683,120]
[357025038,1743585959224,-391.66228091,0.00050799,90]
[357025039,1743585959243,-185.0,0.00055,120]
[357025040,1743585959264,-317.18,0.00055805,2]
[357025041,1743585959285,-150.13,0.00056317,120]
[357025042,1743585959306,-150.0,0.000566,7]
[357025043,1743585959326,-250.0,0.00056627,120]
[357025044,1743585959347,-2171.20353443,0.00056664,2]
[357025045,1743585967043,1766.93443003,8e-05,2]
[357025047,1743586025196,-415.06022431,0.00024,5]
[357025048,1743586040103,-4584.94477019,0.00024,5]
[357025049,1743586040124,-6071.42384602,0.000495,5]
[357025050,1743586081816,286189.6313967,0.00015,2]
[357025052,1743586117767,343.66472369,0.000149,2]
[357025054,1743586121031,8107.21067733,0.00022,15]
[357025056,1743586147090,-2012.8669137,0.0003,2]
[357025057,1743586147112,-1298.14221061,0.0004879,120]
[357025058,1743586166171,-4488.78211558,0.000495,5]
[357025067,1743586214510,151.0,0.00036709,2]
[357025076,1743586232141,-406.41780981,0.00034521,30]
[357025078,1743586232151,-8107.28771019,0.000495,5]
[357025079,1743586232162,-697.08410392,0.000495,5]
[357025080,1743586232200,-270.33973497,0.000495,5]
[357025081,1743586232211,-426.36644233,0.000495,5]
[357025082,1743586232223,-813.9999863,0.000495,5]
[357025083,1743586232234,-574.01311803,0.000495,5]
[357025084,1743586232258,-282.79740433,0.000495,5]
[357025085,1743586232268,-438.25924277,0.000495,5]
[357025086,1743586232279,-1315.05914698,0.000495,5]
[357025087,1743586232370,-255.97559429,0.000495,5]
[357025088,1743586232383,-1620.55561226,0.000495,5]
[357025089,1743586232392,-1360.89222206,0.00054,120]
[357025090,1743586232402,-301.32,0.0005502,2]
[357025091,1743586232411,-53368.2865365,0.00056,120]
[357025092,1743586232427,-399.07240759,0.00056,120]
[357025222,1743586238108,-497.12578567,0.00055999,120]
[357025223,1743586238119,-902.87421433,0.00056,120]
[357025224,1743586238164,-2497.86707672,0.00056,120]
[357025225,1743586238223,-10500.0,0.00056,120]
[357025226,1743586238359,-1184.04144072,0.00056,120]
[357025227,1743586238372,-9968.49884061,0.00056,120]
[357025228,1743586238384,-6179.35948353,0.00056,120]
[357025229,1743586238394,-150.0,0.00056,120]
[357025231,1743586238404,-21728.79646557,0.00056664,2]
[357025233,1743586238414,-1000.0,0.00056879,120]
[357025235,1743586238423,-1008.353,0.00057,120]
[357025237,1743586238432,-6330.42107668,0.00057,120]
[357025239,1743586238444,-7573.3999983,0.00057,120]
[357025310,1743586240360,-947.66428876,0.00057,120]
[357025311,1743586240579,-831.4,0.00057,120]
[357025365,1743586244352,-3480.5219082,0.00057,120]
[357025366,1743586244398,-585.28426057,0.00057,120]
[357025367,1743586245336,-279.09938607,0.00057,120]
[357025374,1743586246177,-1497.41007645,0.00057,120]
[357025375,1743586246190,-30056.70900497,0.00057,120]
[357025376,1743586246200,-200.0,0.00057004,30]
[357025377,1743586246367,-157.36,0.00057139,120]
[357025378,1743586246377,-175.0,0.00057259,120]
[357025379,1743586246387,-301.32,0.00057284,2]
[357025380,1743586246397,-1000.0,0.00057723,30]
[357025381,1743586246406,-169.83,0.00057723,120]
[357025382,1743586246415,-310.477,0.00057723,113]
[357025383,1743586246424,-452.94,0.000578,30]
[357025384,1743586246437,-350.13,0.000578,30]
[357025385,1743586246446,-668.65185757,0.00057865,2]
[357025386,1743586246455,-151.81500224,0.00057899,15]
[357025387,1743586246464,-220.6602,0.000579,120]
[357025388,1743586246473,-4247.61359964,0.000579,2]
[357025389,1743586246484,-965.40518472,0.000579,2]
[357025468,1743586247780,-11304.66061564,0.000579,2]
[357025470,1743586247789,-509.1531279,0.00057959,2]
[357025473,1743586247799,-3710.2192722,0.00057959,2]
[357025475,1743586247808,-1018.4143765,0.00057959,2]
[357025476,1743586247817,-157.0,0.0005796,30]
[357025478,1743586247826,-157.0,0.0005796,30]
[357025480,1743586247835,-157.0,0.0005796,30]
[357025482,1743586247845,-157.0,0.0005796,30]
[357025484,1743586247857,-278.80795753,0.0005796,30]
[357025486,1743586247866,-168.63911419,0.0005796,30]
[357025488,1743586247876,-725.67218836,0.00057969,30]
[357025490,1743586247885,-274.66490877,0.00057969,15]
[357025492,1743586247894,-500.0,0.00057989,120]
[357025494,1743586247903,-395.43231217,0.00057989,120]
[357025496,1743586247912,-500.0,0.00057989,120]
[357025498,1743586247922,-500.0,0.00057989,120]
[357025501,1743586247932,-500.0,0.00057989,120]
[357025503,1743586247942,-39175.9033171,0.0005799,4]
[357025505,1743586247952,-500.0,0.00057999,2]
[357025507,1743586247961,-500.0,0.00057999,120]
[357025509,1743586247973,-500.0,0.00057999,120]
[357025510,1743586247984,-538.33456966,0.00057999,120]
[357025513,1743586247995,-539.56718475,0.00057999,120]
[357025515,1743586248004,-538.91765059,0.00057999,120]
[357025516,1743586248015,-500.0,0.00057999,120]
[357025518,1743586248024,-511.83728508,0.00057999,120]
[357025520,1743586248034,-500.0,0.00057999,120]
[357025523,1743586248045,-538.87307449,0.00057999,120]
[357025525,1743586248055,-537.41069432,0.00057999,120]
[357025527,1743586248065,-150.0,0.00057999,120]
[357025529,1743586248074,-539.65616015,0.00057999,120]
[357025530,1743586248083,-500.0,0.00057999,120]
[357025533,1743586248093,-629.65,0.00057999,120]
[357025535,1743586248107,-3982.07,0.00057999,7]
[357025537,1743586248117,-612.89075813,0.00057999,120]
[357025539,1743586248127,-500.0,0.00057999,120]
[357025541,1743586248137,-1771.23,0.00057999,120]
[357025543,1743586248147,-50000.0,0.00058,58]
[357025545,1743586248157,-249358.85,0.00058,120]
[357025547,1743586248167,-873.0,0.00058,7]
[357025549,1743586248176,-3264.65860976,0.00058253,4]
[357025551,1743586248186,-3264.65860976,0.00058253,4]
[357025553,1743586248197,-500.0,0.00058263,120]
[357025555,1743586248206,-500.0,0.00058263,120]
[357025557,1743586248215,-500.0,0.00058263,120]
[357025559,1743586248225,-500.0,0.00058263,120]
[357025560,1743586248235,-500.0,0.00058263,120]
[357025561,1743586248244,-500.0,0.00058263,120]
[357025562,1743586248254,-500.0,0.00058263,120]
[357025563,1743586248263,-500.0,0.00058263,120]
[357025564,1743586248273,-500.0,0.00058263,120]
[357025565,1743586248283,-500.0,0.00058263,120]
[357025566,1743586248292,-500.0,0.00058263,120]
[357025567,1743586248302,-500.0,0.00058263,120]
[357025568,1743586248311,-500.0,0.00058263,120]
[357025569,1743586248320,-500.0,0.00058263,120]
[357025570,1743586248330,-500.0,0.00058263,120]
[357025571,1743586248340,-500.0,0.00058263,120]
[357025572,1743586248350,-500.0,0.00058263,120]
[357025574,1743586248360,-500.0,0.00058263,120]
[357025576,1743586248370,-500.0,0.00058263,120]
[357025578,1743586248379,-500.0,0.00058263,120]
[357025580,1743586248388,-500.0,0.00058263,120]
[357025582,1743586248399,-500.0,0.00058263,120]
[357025584,1743586248408,-500.0,0.00058263,120]
[357025586,1743586248418,-500.0,0.00058263,120]
[357025588,1743586248427,-500.0,0.00058263,120]
[357025590,1743586248437,-500.0,0.00058263,120]
[357025592,1743586248447,-500.0,0.00058263,120]
[357025594,1743586248456,-500.0,0.00058263,120]
[357025596,1743586248466,-500.0,0.00058263,120]
[357025598,1743586248476,-328.68306689,0.00058273,120]
[357025600,1743586248486,-515.51618187,0.00058273,120]
[357025601,1743586248495,-500.0,0.00058273,120]
[357025603,1743586248505,-247.76,0.00058273,120]
[357025606,1743586248515,-3982.07,0.00058273,7]
[357025607,1743586248525,-500.0,0.00058273,120]
[357025609,1743586248535,-1771.23,0.00058273,120]
[357025611,1743586248545,-152.3,0.00058395,120]
[357025614,1743586248555,-500.0,0.00058547,120]
[357025615,1743586248565,-3982.07,0.00058547,7]
[357025617,1743586248575,-575.28,0.00058547,120]
[357025620,1743586248586,-1771.23,0.00058547,120]
[357025621,1743586248596,-1000.0,0.000588,21]
[357025623,1743586248607,-151.41,0.00058811,120]
[357025625,1743586248617,-500.0,0.00058821,120]
[357025627,1743586248628,-3982.07,0.00058821,7]
[357025629,1743586248638,-1771.23,0.00058821,120]
[357025631,1743586248648,-303.0,0.000589,120]
[357025633,1743586248658,-150.0,0.000589,5]
[357025635,1743586248669,-2000.0,0.000589,21]
[357025637,1743586248681,-509.1531279,0.0005896,2]
[357025639,1743586248693,-26000.0,0.00058968,120]
[357025641,1743586248704,-10972.49910496,0.0005897,4]
[357025644,1743586248717,-9278.19074444,0.0005897,4]
[357025646,1743586248731,-823.01137287,0.0005897,4]
[357025648,1743586248742,-27154.94291588,0.0005897,4]
[357025650,1743586248753,-531.6420047,0.0005897,4]
[357025654,1743586248783,4241.67101122,0.000488,120]
[357025658,1743586248806,3199.40957195,0.000488,120]
[357025778,1743586249969,253.2781424,0.00047824,10]
[357026103,1743586327703,3409.876428,7.945e-05,2]
[357026106,1743586436883,-150.0,0.000343,100]
[357026109,1743587144127,-156.91,0.00026849,2]
[357026110,1743587144149,-176.0,0.00041,14]
[357026111,1743587144169,-901.63882309,0.00041105,2]
[357026112,1743587190413,-397.75195016,0.00041005,2]
[357026113,1743587190440,-3078.01817691,0.00041105,2]
[357026114,1743587190467,-620.788,0.00041105,2]
[357026115,1743587190491,-171.78,0.00041105,2]
[357026116,1743587190517,-156.91,0.00042583,2]
[357026117,1743587190541,-3950.0,0.00044105,2]
[357026118,1743587190565,-164.86021094,0.00045,120]
[357026119,1743587190589,-2251.811433,0.00048456,2]
[357026120,1743587190612,-831.4,0.000487,2]
[357026121,1743587190636,-13376.68022899,0.000487,2]
[357026122,1743587191830,-22024.95467101,0.000487,2]
[357026123,1743587191855,-150.0,0.00048773,7]
[357026124,1743587191881,-248.382,0.00048773,84]
[357026125,1743587191911,-2576.66332899,0.000488,120]
[357026126,1743587193049,-25000.0,0.000488,120]
[357026127,1743587193993,-25000.0,0.000488,120]
[357026128,1743587194838,-25000.0,0.000488,120]
[357026129,1743587195705,-25000.0,0.000488,120]
[357026130,1743587212710,-25000.0,0.000488,120]
[357026131,1743587213726,-25000.0,0.000488,120]
[357026132,1743587232211,-500.0,0.00048773,2]
[357026133,1743587232233,-425.77435854,0.000488,120]
[357026134,1743587233097,-192.52992077,0.000488,120]
[357026135,1743587247111,-1255.13777874,0.000488,120]
[357026136,1743587348123,1724.886226,7.945e-05,2]
[357026137,1743587353137,-1028.35,0.000485,120]
[357026138,1743587354093,-4121.57642966,0.000488,120]
[357026139,1743587358116,-30075.93653738,0.000488,120]
[357026140,1743587368104,-18047.22986401,0.000488,120]
[357026141,1743587407587,2346.80866,7.945e-05,2]
[357026142,1743587432431,-819.53387715,0.000488,120]
[357026143,1743587432643,-2637.44053237,0.000488,120]
[357026144,1743587432698,-25933.61331004,0.000488,120]
[357026145,1743587432708,-504.07280663,0.000491,15]
[357026146,1743587432718,-152.71,0.000492,45]
[357026147,1743587432727,-534.84847705,0.00049315,120]
[357026148,1743587432737,-530.5539718,0.00049315,120]
[357026149,1743587432749,-310.92273767,0.00049315,120]
[357026150,1743587432759,-533.88944424,0.00049315,120]
[357026151,1743587432769,-535.00415638,0.00049315,120]
[357026152,1743587432778,-531.2514951,0.00049315,120]
[357026153,1743587432787,-534.12413282,0.00049315,120]
[357026154,1743587432797,-534.02544525,0.00049315,120]
[357026155,1743587432807,-535.56884492,0.00049315,120]
[357026156,1743587432816,-535.04968568,0.00049315,120]
[357026157,1743587432826,-500.0,0.00049315,12]
[357026158,1743587432835,-500.0,0.00049315,30]
[357026159,1743587432845,-500.0,0.00049315,120]
[357026160,1743587432854,-513.82729596,0.00049315,120]
[357026161,1743587432863,-515.47470578,0.00049315,120]
[357026162,1743587432872,-509.6057139,0.00049315,120]
[357026163,1743587432882,-500.0,0.00049315,120]
[357026164,1743587432892,-500.0,0.00049315,120]
[357026165,1743587432902,-3372.99,0.00049315,7]
[357026166,1743587432911,-500.0,0.00049315,2]
[357026167,1743587432920,-500.0,0.00049315,120]
[357026168,1743587432930,-500.0,0.00049315,120]
[357026169,1743587432940,-592.8024273,0.00049315,120]
[357026170,1743587432949,-500.0,0.00049315,120]
[357026171,1743587432959,-393.07977572,0.00049315,120]
[357026172,1743587432969,-270.50972923,0.00049315,120]
[357026173,1743587432979,-169.84,0.00049315,120]
[357026174,1743587432988,-311.91,0.00049368,2]
[357026175,1743587432997,-500.0,0.00049589,12]
[357026176,1743587433007,-500.0,0.00049589,30]
[357026177,1743587433016,-500.0,0.00049589,120]
[357026178,1743587433025,-3372.99,0.00049589,7]
[357026179,1743587433035,-500.0,0.00049589,2]
[357026180,1743587433045,-325.72,0.00049863,12]
[357026181,1743587433055,-500.0,0.00049863,30]
[357026182,1743587433066,-636.16,0.00049863,120]
[357026183,1743587433076,-3372.99,0.00049863,7]
[357026184,1743587433086,-500.0,0.00049863,2]
[357026185,1743587433097,-502.86639769,0.00049887,2]
[357026186,1743587433108,-200.0,0.0005,120]
[357026187,1743587433118,-229.33,0.00050136,30]
[357026188,1743587433127,-3372.99,0.00050136,7]
[357026189,1743587433137,-500.0,0.00050136,2]
[357026190,1743587433147,-3372.99,0.0005041,7]
[357026191,1743587433157,-500.0,0.0005041,2]
[357026192,1743587433167,-3372.99,0.00050684,7]
[357026193,1743587433177,-500.0,0.00050684,2]
[357026194,1743587433187,-3372.99,0.00050958,7]
[357026195,1743587433196,-500.0,0.00050958,2]
[357026196,1743587433206,-902.27,0.0005099,2]
[357026197,1743587433216,-200.0,0.00051048,2]
[357026198,1743587433226,-1000.0,0.00051048,120]
[357026199,1743587433236,-1141.30867315,0.00051132,15]
[357026200,1743587433245,-3372.99,0.00051232,7]
[357026201,1743587433255,-500.0,0.00051232,2]
[357026202,1743587433264,-283.97562398,0.00051406,120]
[357026203,1743587433273,-504.07280656,0.00051411,15]
[357026204,1743587433283,-23900.0,0.00051497,2]
[357026205,1743587433292,-3372.99,0.00051506,7]
[357026206,1743587433302,-500.0,0.00051506,2]
[357026207,1743587433311,-152.71,0.000516,51]
[357026208,1743587433321,-152.71,0.000516,51]
[357026209,1743587433334,-311.91,0.00051632,2]
[357026210,1743587433343,-3372.99,0.0005178,7]
[357026211,1743587433353,-486.90289831,0.0005178,2]
[357026212,1743587433362,-3372.99,0.00052054,7]
[357026213,1743587433372,-190.78,0.00052175,2]